[Event "Titled Tuesday Blitz January 03 Late 2023"]
[White "Keymer, Vincent"]
[Black "Naroditsky, Daniel"]
[WhiteFideId "12940690"]
[BlackFideId "2026961"]
[WhiteElo "2700"]
[BlackElo "2618"]
[Result "1/2-1/2"]
[Round "05"]
[TimeControl "180+2"]
[Date "2023.01.03"]
[WhiteClock "0:00:08"]
[BlackClock "0:00:04"]

1. Nf3 {[%clk 0:03:00]}  Nf6 {[%clk 0:02:56]} 2. c4 {[%clk 0:03:00]}  g6 {[%clk 0:02:55]} 3. Nc3 {[%clk 0:03:00]}  Bg7 {[%clk 0:02:55]} 4. g3 {[%clk 0:03:01]}  O-O {[%clk 0:02:55]} 5. Bg2 {[%clk 0:03:01]}  d6 {[%clk 0:02:55]} 6. d4 {[%clk 0:03:01]}  Nbd7 {[%clk 0:02:55]} 7. O-O {[%clk 0:03:01]}  e5 {[%clk 0:02:56]} 8. e4 {[%clk 0:03:02]}  c6 {[%clk 0:02:56]} 9. h3 {[%clk 0:03:02]}  Qa5 {[%clk 0:02:56]} 10. Be3 {[%clk 0:03:01]}  Re8 {[%clk 0:02:43]} 11. Re1 {[%clk 0:03:01]}  exd4 {[%clk 0:02:37]} 12. Bxd4 {[%clk 0:03:02]}  Ne5 {[%clk 0:02:37]} 13. c5 {[%clk 0:03:01]}  Nxf3+ {[%clk 0:02:05]} 14. Qxf3 {[%clk 0:03:02]}  Qd8 {[%clk 0:02:06]} 15. cxd6 {[%clk 0:02:49]}  Qxd6 {[%clk 0:02:07]} 16. Rad1 {[%clk 0:02:49]}  Qe7 {[%clk 0:02:07]} 17. e5 {[%clk 0:02:49]}  Nd7 {[%clk 0:02:07]} 18. Ne4 {[%clk 0:02:24]}  Nxe5 {[%clk 0:02:06]} 19. Bxe5 {[%clk 0:02:09]}  Bxe5 {[%clk 0:01:53]} 20. Nf6+ {[%clk 0:02:07]}  Bxf6 {[%clk 0:01:53]} 21. Rxe7 {[%clk 0:02:07]}  Bxe7 {[%clk 0:01:54]} 22. Qb3 {[%clk 0:01:44]}  Bc5 {[%clk 0:01:52]} 23. Bf1 {[%clk 0:01:06]}  Bb6 {[%clk 0:01:48]} 24. Bc4 {[%clk 0:01:05]}  Be6 {[%clk 0:01:48]} 25. Kg2 {[%clk 0:00:57]}  Bxc4 {[%clk 0:01:39]} 26. Qxc4 {[%clk 0:00:57]}  Re7 {[%clk 0:01:40]} 27. b4 {[%clk 0:00:50]}  Rae8 {[%clk 0:01:38]} 28. Rd2 {[%clk 0:00:43]}  Re4 {[%clk 0:01:36]} 29. Qb3 {[%clk 0:00:43]}  R8e7 {[%clk 0:01:06]} 30. a4 {[%clk 0:00:26]}  a5 {[%clk 0:01:07]} 31. b5 {[%clk 0:00:23]}  cxb5 {[%clk 0:00:33]} 32. Qxb5 {[%clk 0:00:21]}  R4e6 {[%clk 0:00:28]} 33. Rd3 {[%clk 0:00:20]}  Rf6 {[%clk 0:00:23]} 34. Rf3 {[%clk 0:00:18]}  Rxf3 {[%clk 0:00:24]} 35. Kxf3 {[%clk 0:00:19]}  Re6 {[%clk 0:00:25]} 36. g4 {[%clk 0:00:15]}  Rf6+ {[%clk 0:00:23]} 37. Ke4 {[%clk 0:00:15]}  Bxf2 {[%clk 0:00:19]} 38. Qxb7 {[%clk 0:00:13]}  Re6+ {[%clk 0:00:07]} 39. Kd5 {[%clk 0:00:14]}  Be1 {[%clk 0:00:07]} 40. h4 {[%clk 0:00:10]}  Kg7 {[%clk 0:00:05]} 41. h5 {[%clk 0:00:10]}  gxh5 {[%clk 0:00:03]} 42. gxh5 {[%clk 0:00:11]}  h6 {[%clk 0:00:03]} 43. Qb2+ {[%clk 0:00:10]}  Kg8 {[%clk 0:00:04]} 44. Qg2+ {[%clk 0:00:10]}  Kf8 {[%clk 0:00:04]} 45. Qf3 {[%clk 0:00:08]}  Bb4 {[%clk 0:00:04]} 46. Kc4 {[%clk 0:00:08]}  Kg7 {[%clk 0:00:04]} 47. Qg4+ {[%clk 0:00:08]} 1/2-1/2


[Site "https://www.chess.com"]

[Event "Titled Tuesday Blitz January 03 Late 2023"]
[White "Lazavik, Denis"]
[Black "Caruana, Fabiano"]
[WhiteFideId "13515110"]
[BlackFideId "2020009"]
[WhiteElo "2544"]
[BlackElo "2764"]
[Result "0-1"]
[Round "05"]
[TimeControl "180+2"]
[Date "2023.01.03"]
[WhiteClock "0:00:01"]
[BlackClock "0:01:08"]

1. d4 {[%clk 0:03:00]}  Nf6 {[%clk 0:02:59]} 2. c4 {[%clk 0:03:01]}  e6 {[%clk 0:02:59]} 3. Nf3 {[%clk 0:03:02]}  Bb4+ {[%clk 0:02:58]} 4. Bd2 {[%clk 0:03:01]}  Qe7 {[%clk 0:02:59]} 5. g3 {[%clk 0:03:01]}  Nc6 {[%clk 0:02:59]} 6. Nc3 {[%clk 0:03:00]}  O-O {[%clk 0:02:58]} 7. Bg2 {[%clk 0:03:00]}  d5 {[%clk 0:02:59]} 8. a3 {[%clk 0:02:58]}  Bxc3 {[%clk 0:02:59]} 9. Bxc3 {[%clk 0:02:59]}  Ne4 {[%clk 0:02:58]} 10. Qc2 {[%clk 0:02:58]}  Rd8 {[%clk 0:02:57]} 11. O-O {[%clk 0:02:56]}  b6 {[%clk 0:02:57]} 12. b3 {[%clk 0:02:45]}  a5 {[%clk 0:02:56]} 13. Bb2 {[%clk 0:02:44]}  Bb7 {[%clk 0:02:56]} 14. Rfd1 {[%clk 0:02:43]}  h6 {[%clk 0:02:56]} 15. Rac1 {[%clk 0:02:42]}  Rac8 {[%clk 0:02:56]} 16. e3 {[%clk 0:02:42]}  a4 {[%clk 0:02:30]} 17. b4 {[%clk 0:02:41]}  Nd6 {[%clk 0:02:30]} 18. Nd2 {[%clk 0:02:36]}  dxc4 {[%clk 0:01:59]} 19. Nxc4 {[%clk 0:02:34]}  b5 {[%clk 0:01:59]} 20. Ne5 {[%clk 0:01:56]}  Nxe5 {[%clk 0:01:50]} 21. dxe5 {[%clk 0:01:55]}  Bxg2 {[%clk 0:01:50]} 22. Kxg2 {[%clk 0:00:24]}  Nc4 {[%clk 0:01:48]} 23. Qc3 {[%clk 0:00:13]}  Rxd1 {[%clk 0:01:42]} 24. Rxd1 {[%clk 0:00:12]}  Rd8 {[%clk 0:01:42]} 25. Rd4 {[%clk 0:00:12]}  Qe8 {[%clk 0:01:36]} 26. Bc1 {[%clk 0:00:10]}  Qc6+ {[%clk 0:01:34]} 27. e4 {[%clk 0:00:05]}  Rd7 {[%clk 0:01:27]} 28. Rxd7 {[%clk 0:00:02]}  Qxd7 {[%clk 0:01:28]} 29. h4 {[%clk 0:00:02]}  Qd1 {[%clk 0:01:25]} 30. Bf4 {[%clk 0:00:03]}  c6 {[%clk 0:01:11]} 31. h5 {[%clk 0:00:02]}  Kh7 {[%clk 0:01:09]} 32. Kh2 {[%clk 0:00:01]}  Qxh5+ {[%clk 0:01:08]} 33. Kg2 {[%clk 0:00:01]}  Qd1 {[%clk 0:01:08]} 0-1


[Site "https://www.chess.com"]

[Event "Titled Tuesday Blitz January 03 Late 2023"]
[White "Pranav, V"]
[Black "Dardha, Daniel"]
[WhiteFideId "25060783"]
[BlackFideId "240990"]
[WhiteElo "2597"]
[BlackElo "2631"]
[Result "0-1"]
[Round "05"]
[TimeControl "180+2"]
[Date "2023.01.03"]
[WhiteClock "0:00:03"]
[BlackClock "0:00:03"]

1. e4 {[%clk 0:03:00]}  e5 {[%clk 0:02:59]} 2. Nf3 {[%clk 0:03:00]}  Nc6 {[%clk 0:03:00]} 3. Bb5 {[%clk 0:03:01]}  Nf6 {[%clk 0:02:59]} 4. d3 {[%clk 0:03:01]}  d6 {[%clk 0:02:58]} 5. O-O {[%clk 0:03:01]}  a6 {[%clk 0:02:58]} 6. Ba4 {[%clk 0:02:59]}  b5 {[%clk 0:02:58]} 7. Bb3 {[%clk 0:02:59]}  Na5 {[%clk 0:02:59]} 8. Re1 {[%clk 0:02:57]}  Be7 {[%clk 0:02:49]} 9. c3 {[%clk 0:02:54]}  Nxb3 {[%clk 0:02:48]} 10. axb3 {[%clk 0:02:55]}  h6 {[%clk 0:02:46]} 11. Nbd2 {[%clk 0:02:55]}  O-O {[%clk 0:02:45]} 12. Nf1 {[%clk 0:02:56]}  Re8 {[%clk 0:02:41]} 13. Ng3 {[%clk 0:02:56]}  Bf8 {[%clk 0:02:41]} 14. h3 {[%clk 0:02:56]}  Bb7 {[%clk 0:02:41]} 15. Be3 {[%clk 0:02:54]}  d5 {[%clk 0:02:40]} 16. Qc2 {[%clk 0:02:53]}  c5 {[%clk 0:02:40]} 17. Bc1 {[%clk 0:02:43]}  Qc7 {[%clk 0:02:28]} 18. c4 {[%clk 0:02:41]}  d4 {[%clk 0:02:15]} 19. Nf5 {[%clk 0:02:37]}  Kh7 {[%clk 0:02:10]} 20. Nh2 {[%clk 0:02:26]}  g6 {[%clk 0:02:09]} 21. Ng3 {[%clk 0:02:26]}  Bg7 {[%clk 0:01:58]} 22. Ng4 {[%clk 0:02:23]}  Nd7 {[%clk 0:01:50]} 23. Rf1 {[%clk 0:02:22]}  h5 {[%clk 0:01:22]} 24. Nh2 {[%clk 0:02:21]}  h4 {[%clk 0:01:04]} 25. Ne2 {[%clk 0:02:21]}  f5 {[%clk 0:01:04]} 26. Bg5 {[%clk 0:02:13]}  fxe4 {[%clk 0:01:01]} 27. dxe4 {[%clk 0:02:14]}  bxc4 {[%clk 0:00:56]} 28. bxc4 {[%clk 0:02:14]}  Bf6 {[%clk 0:00:39]} 29. Nf3 {[%clk 0:01:35]}  Qd8 {[%clk 0:00:34]} 30. Bxf6 {[%clk 0:01:34]}  Nxf6 {[%clk 0:00:35]} 31. Ng5+ {[%clk 0:01:34]}  Kg7 {[%clk 0:00:31]} 32. Ra3 {[%clk 0:01:27]}  Qe7 {[%clk 0:00:21]} 33. f4 {[%clk 0:01:24]}  exf4 {[%clk 0:00:19]} 34. Nxf4 {[%clk 0:01:25]}  Qe5 {[%clk 0:00:18]} 35. Rb3 {[%clk 0:01:17]}  Qxg5 {[%clk 0:00:16]} 36. Rxb7+ {[%clk 0:01:16]}  Kh6 {[%clk 0:00:16]} 37. Rf7 {[%clk 0:01:09]}  Nxe4 {[%clk 0:00:13]} 38. Rf3 {[%clk 0:00:48]}  Ng3 {[%clk 0:00:13]} 39. Qd2 {[%clk 0:00:33]}  Re4 {[%clk 0:00:12]} 40. Kh2 {[%clk 0:00:20]}  Rae8 {[%clk 0:00:10]} 41. Rg7 {[%clk 0:00:06]}  Re1 {[%clk 0:00:07]} 42. Rxg6+ {[%clk 0:00:06]}  Kh7 {[%clk 0:00:03]} 43. Rg7+ {[%clk 0:00:02]}  Kxg7 {[%clk 0:00:02]} 44. Ne6+ {[%clk 0:00:03]}  Kh8 {[%clk 0:00:02]} 45. Qxe1 {[%clk 0:00:03]}  Qh6 {[%clk 0:00:01]} 46. Qe5+ {[%clk 0:00:03]}  Kg8 {[%clk 0:00:02]} 47. Rf6 {[%clk 0:00:03]}  Qh5 {[%clk 0:00:02]} 48. Qxh5 {[%clk 0:00:02]}  Nxh5 {[%clk 0:00:02]} 49. Rh6 {[%clk 0:00:02]}  Kf7 {[%clk 0:00:02]} 50. Ng5+ {[%clk 0:00:02]}  Kg7 {[%clk 0:00:03]} 51. Rxh5 {[%clk 0:00:03]}  Kg6 {[%clk 0:00:03]} 52. Rxh4 {[%clk 0:00:03]}  Kxg5 {[%clk 0:00:04]} 53. Rg4+ {[%clk 0:00:04]}  Kf5 {[%clk 0:00:05]} 54. Rg3 {[%clk 0:00:03]}  Kf4 {[%clk 0:00:03]} 55. Rf3+ {[%clk 0:00:04]}  Ke4 {[%clk 0:00:03]} 56. Kg1 {[%clk 0:00:04]}  Rb8 {[%clk 0:00:02]} 57. h4 {[%clk 0:00:04]}  d3 {[%clk 0:00:02]} 58. h5 {[%clk 0:00:04]}  d2 {[%clk 0:00:02]} 59. Rf1 {[%clk 0:00:04]}  Rxb2 {[%clk 0:00:03]} 60. g4 {[%clk 0:00:03]}  Rc2 {[%clk 0:00:03]} 61. h6 {[%clk 0:00:03]}  Rc1 {[%clk 0:00:03]} 0-1


[Site "https://www.chess.com"]

[Event "Titled Tuesday Blitz January 03 Late 2023"]
[White "Zakhartsov, Vladimir"]
[Black "Kollars, Dmitrij"]
[WhiteFideId "4145097"]
[BlackFideId "12909572"]
[WhiteElo "2552"]
[BlackElo "2607"]
[Result "0-1"]
[Round "05"]
[TimeControl "180+2"]
[Date "2023.01.03"]
[WhiteClock "0:00:01"]
[BlackClock "0:00:16"]

1. c4 {[%clk 0:03:00]}  e5 {[%clk 0:02:52]} 2. g3 {[%clk 0:02:59]}  c6 {[%clk 0:02:52]} 3. d4 {[%clk 0:02:57]}  e4 {[%clk 0:02:51]} 4. d5 {[%clk 0:02:49]}  Bb4+ {[%clk 0:02:49]} 5. Bd2 {[%clk 0:02:48]}  Qe7 {[%clk 0:02:49]} 6. Nc3 {[%clk 0:02:46]}  Nf6 {[%clk 0:02:47]} 7. Bg2 {[%clk 0:02:47]}  cxd5 {[%clk 0:02:46]} 8. cxd5 {[%clk 0:02:43]}  O-O {[%clk 0:02:46]} 9. Nh3 {[%clk 0:02:43]}  d6 {[%clk 0:02:38]} 10. O-O {[%clk 0:02:24]}  a5 {[%clk 0:02:37]} 11. Be3 {[%clk 0:01:40]}  Bf5 {[%clk 0:02:31]} 12. Bd4 {[%clk 0:01:30]}  Nbd7 {[%clk 0:02:30]} 13. Nf4 {[%clk 0:01:20]}  Rac8 {[%clk 0:02:20]} 14. e3 {[%clk 0:01:21]}  Ne5 {[%clk 0:02:13]} 15. a3 {[%clk 0:01:11]}  Bc5 {[%clk 0:02:12]} 16. Bxc5 {[%clk 0:01:10]}  Rxc5 {[%clk 0:02:12]} 17. h3 {[%clk 0:01:09]}  h6 {[%clk 0:02:05]} 18. Rc1 {[%clk 0:01:04]}  Rfc8 {[%clk 0:02:04]} 19. Kh2 {[%clk 0:01:01]}  b5 {[%clk 0:01:54]} 20. Qd2 {[%clk 0:00:56]}  g5 {[%clk 0:01:49]} 21. Nfe2 {[%clk 0:00:44]}  Nd3 {[%clk 0:01:50]} 22. b4 {[%clk 0:00:36]}  axb4 {[%clk 0:01:26]} 23. axb4 {[%clk 0:00:37]}  Nxb4 {[%clk 0:01:27]} 24. Nd4 {[%clk 0:00:33]}  Bg6 {[%clk 0:01:24]} 25. Ncxb5 {[%clk 0:00:13]}  Nfxd5 {[%clk 0:01:17]} 26. Ra1 {[%clk 0:00:11]}  Qe5 {[%clk 0:01:09]} 27. Rfb1 {[%clk 0:00:09]}  Nd3 {[%clk 0:01:02]} 28. Ra6 {[%clk 0:00:09]}  Rb8 {[%clk 0:00:41]} 29. Nc6 {[%clk 0:00:08]}  Rxc6 {[%clk 0:00:20]} 30. Rxc6 {[%clk 0:00:08]}  N5b4 {[%clk 0:00:21]} 31. Nd4 {[%clk 0:00:06]}  Nxc6 {[%clk 0:00:17]} 32. Nxc6 {[%clk 0:00:07]}  Rxb1 {[%clk 0:00:18]} 33. Nxe5 {[%clk 0:00:07]}  dxe5 {[%clk 0:00:18]} 34. f3 {[%clk 0:00:04]}  Rb2 {[%clk 0:00:18]} 35. Qd1 {[%clk 0:00:03]}  exf3 {[%clk 0:00:18]} 36. Qxf3 {[%clk 0:00:04]}  Ne1 {[%clk 0:00:18]} 37. Qa8+ {[%clk 0:00:04]}  Kh7 {[%clk 0:00:18]} 38. h4 {[%clk 0:00:05]}  Rxg2+ {[%clk 0:00:17]} 39. Kh1 {[%clk 0:00:04]}  Rxg3 {[%clk 0:00:17]} 40. h5 {[%clk 0:00:04]}  Bxh5 {[%clk 0:00:17]} 41. Qe4+ {[%clk 0:00:04]}  Bg6 {[%clk 0:00:17]} 42. Qd5 {[%clk 0:00:01]}  Nf3 {[%clk 0:00:16]} 0-1


[Site "https://www.chess.com"]

[Event "Titled Tuesday Blitz January 03 Late 2023"]
[White "Carlsen, Magnus"]
[Black "Jacobson, Brandon"]
[WhiteFideId "1503014"]
[BlackFideId "30901561"]
[WhiteElo "2853"]
[BlackElo "2556"]
[Result "1-0"]
[Round "05"]
[TimeControl "180+2"]
[Date "2023.01.03"]
[WhiteClock "0:00:08"]
[BlackClock "0:00:03"]

1. b3 {[%clk 0:03:00]}  Nf6 {[%clk 0:02:58]} 2. Bb2 {[%clk 0:03:00]}  g6 {[%clk 0:02:59]} 3. g3 {[%clk 0:02:59]}  Bg7 {[%clk 0:03:00]} 4. Bg2 {[%clk 0:02:59]}  O-O {[%clk 0:03:00]} 5. Nf3 {[%clk 0:02:58]}  b6 {[%clk 0:03:01]} 6. Ne5 {[%clk 0:02:52]}  d5 {[%clk 0:03:00]} 7. O-O {[%clk 0:02:50]}  Bb7 {[%clk 0:03:01]} 8. c4 {[%clk 0:02:50]}  e6 {[%clk 0:03:01]} 9. d4 {[%clk 0:02:49]}  Qe7 {[%clk 0:03:01]} 10. Nc3 {[%clk 0:02:49]}  Rd8 {[%clk 0:03:00]} 11. Rc1 {[%clk 0:02:46]}  c5 {[%clk 0:02:59]} 12. dxc5 {[%clk 0:02:01]}  bxc5 {[%clk 0:02:45]} 13. cxd5 {[%clk 0:01:59]}  exd5 {[%clk 0:02:44]} 14. Nd3 {[%clk 0:01:59]}  c4 {[%clk 0:02:18]} 15. bxc4 {[%clk 0:01:39]}  dxc4 {[%clk 0:02:15]} 16. Ba3 {[%clk 0:01:40]}  Qc7 {[%clk 0:02:01]} 17. Nb5 {[%clk 0:01:36]}  Qb6 {[%clk 0:01:51]} 18. Bxb7 {[%clk 0:01:35]}  Qxb7 {[%clk 0:01:51]} 19. Nc5 {[%clk 0:01:35]}  Qb6 {[%clk 0:01:09]} 20. Qa4 {[%clk 0:01:14]}  a6 {[%clk 0:00:32]} 21. Nc3 {[%clk 0:01:12]}  Rc8 {[%clk 0:00:33]} 22. Qxc4 {[%clk 0:00:58]}  Nbd7 {[%clk 0:00:30]} 23. Nd5 {[%clk 0:00:56]}  Nxd5 {[%clk 0:00:28]} 24. Qxd5 {[%clk 0:00:57]}  Nxc5 {[%clk 0:00:23]} 25. Rxc5 {[%clk 0:00:58]}  Rd8 {[%clk 0:00:19]} 26. Qf3 {[%clk 0:00:57]}  Qe6 {[%clk 0:00:18]} 27. Rc2 {[%clk 0:00:55]}  h5 {[%clk 0:00:14]} 28. h4 {[%clk 0:00:51]}  Be5 {[%clk 0:00:14]} 29. Rfc1 {[%clk 0:00:50]}  Rac8 {[%clk 0:00:14]} 30. Rxc8 {[%clk 0:00:44]}  Rxc8 {[%clk 0:00:15]} 31. Rxc8+ {[%clk 0:00:45]}  Qxc8 {[%clk 0:00:16]} 32. Qd5 {[%clk 0:00:44]}  Bf6 {[%clk 0:00:16]} 33. Bc5 {[%clk 0:00:42]}  Kg7 {[%clk 0:00:13]} 34. Kg2 {[%clk 0:00:38]}  Qg4 {[%clk 0:00:13]} 35. Qd3 {[%clk 0:00:09]}  Bxh4 {[%clk 0:00:07]} 36. Qxa6 {[%clk 0:00:09]}  Bf6 {[%clk 0:00:03]} 37. Qd6 {[%clk 0:00:09]}  h4 {[%clk 0:00:03]} 38. Qf8+ {[%clk 0:00:09]}  Kh7 {[%clk 0:00:02]} 39. Qxf7+ {[%clk 0:00:09]}  Bg7 {[%clk 0:00:03]} 40. Bf8 {[%clk 0:00:08]} 1-0


[Site "https://www.chess.com"]

[Event "Titled Tuesday Blitz January 03 Late 2023"]
[White "Tari, Aryan"]
[Black "Timmermans, Mark"]
[WhiteFideId "1510045"]
[BlackFideId "1026399"]
[WhiteElo "2642"]
[BlackElo "2392"]
[Result "1-0"]
[Round "05"]
[TimeControl "180+2"]
[Date "2023.01.03"]
[WhiteClock "0:00:22"]
[BlackClock "0:00:56"]

1. d4 {[%clk 0:02:38]}  Nf6 {[%clk 0:02:55]} 2. c4 {[%clk 0:02:38]}  e6 {[%clk 0:02:55]} 3. Nf3 {[%clk 0:02:37]}  d5 {[%clk 0:02:53]} 4. Nc3 {[%clk 0:02:37]}  dxc4 {[%clk 0:02:53]} 5. e3 {[%clk 0:02:37]}  a6 {[%clk 0:02:54]} 6. a4 {[%clk 0:02:37]}  c5 {[%clk 0:02:53]} 7. Bxc4 {[%clk 0:02:37]}  Nc6 {[%clk 0:02:54]} 8. O-O {[%clk 0:02:37]}  Be7 {[%clk 0:02:53]} 9. Qe2 {[%clk 0:02:36]}  cxd4 {[%clk 0:02:41]} 10. Rd1 {[%clk 0:02:35]}  O-O {[%clk 0:02:40]} 11. exd4 {[%clk 0:02:33]}  Nb4 {[%clk 0:02:39]} 12. Ne5 {[%clk 0:02:24]}  b6 {[%clk 0:02:25]} 13. Bg5 {[%clk 0:02:16]}  Bb7 {[%clk 0:02:13]} 14. Bb3 {[%clk 0:02:02]}  Rc8 {[%clk 0:02:07]} 15. Rd2 {[%clk 0:01:55]}  h6 {[%clk 0:01:58]} 16. Bh4 {[%clk 0:01:45]}  Rc7 {[%clk 0:01:46]} 17. Re1 {[%clk 0:01:44]}  Qa8 {[%clk 0:01:45]} 18. f3 {[%clk 0:01:30]}  Nbd5 {[%clk 0:01:41]} 19. Nxd5 {[%clk 0:01:22]}  Bxd5 {[%clk 0:01:40]} 20. Bc2 {[%clk 0:01:13]}  Rfc8 {[%clk 0:01:36]} 21. Qd3 {[%clk 0:01:09]}  g5 {[%clk 0:01:31]} 22. Bg3 {[%clk 0:01:00]}  Bb4 {[%clk 0:01:31]} 23. Ng4 {[%clk 0:01:01]}  Nxg4 {[%clk 0:01:26]} 24. Bxc7 {[%clk 0:00:54]}  Bxd2 {[%clk 0:01:26]} 25. Qh7+ {[%clk 0:00:44]}  Kf8 {[%clk 0:01:26]} 26. Bd6+ {[%clk 0:00:43]}  Ke8 {[%clk 0:01:26]} 27. Bg6 {[%clk 0:00:32]}  e5 {[%clk 0:01:16]} 28. fxg4 {[%clk 0:00:24]}  Bxe1 {[%clk 0:01:09]} 29. Bf5 {[%clk 0:00:24]}  Bf2+ {[%clk 0:01:03]} 30. Kxf2 {[%clk 0:00:24]}  Be6 {[%clk 0:01:04]} 31. Bxe6 {[%clk 0:00:23]}  Rc2+ {[%clk 0:01:01]} 32. Qxc2 {[%clk 0:00:23]}  fxe6 {[%clk 0:01:01]} 33. Qh7 {[%clk 0:00:22]}  Qd8 {[%clk 0:00:56]} 34. dxe5 {[%clk 0:00:22]} 1-0


[Site "https://www.chess.com"]

[Event "Titled Tuesday Blitz January 03 Late 2023"]
[White "Oparin, Grigoriy"]
[Black "Yanchenko, Roman"]
[WhiteFideId "24125890"]
[BlackFideId "4137329"]
[WhiteElo "2667"]
[BlackElo "2466"]
[Result "0-1"]
[Round "05"]
[TimeControl "180+2"]
[Date "2023.01.03"]
[WhiteClock "0:00:05"]
[BlackClock "0:00:08"]

1. b3 {[%clk 0:02:55]}  e5 {[%clk 0:02:59]} 2. Bb2 {[%clk 0:02:55]}  Nc6 {[%clk 0:03:00]} 3. c4 {[%clk 0:02:55]}  d6 {[%clk 0:03:00]} 4. Nc3 {[%clk 0:02:55]}  g6 {[%clk 0:03:00]} 5. g3 {[%clk 0:02:55]}  Bg7 {[%clk 0:03:01]} 6. Bg2 {[%clk 0:02:56]}  Nge7 {[%clk 0:03:01]} 7. e3 {[%clk 0:02:55]}  O-O {[%clk 0:03:01]} 8. Nge2 {[%clk 0:02:54]}  Be6 {[%clk 0:03:00]} 9. O-O {[%clk 0:02:54]}  Qd7 {[%clk 0:03:00]} 10. Nd5 {[%clk 0:02:54]}  Rac8 {[%clk 0:02:54]} 11. Nxe7+ {[%clk 0:02:52]}  Qxe7 {[%clk 0:02:55]} 12. d4 {[%clk 0:02:52]}  exd4 {[%clk 0:02:53]} 13. Nxd4 {[%clk 0:02:52]}  Nxd4 {[%clk 0:02:34]} 14. Bxd4 {[%clk 0:02:53]}  b6 {[%clk 0:02:32]} 15. Qd2 {[%clk 0:02:40]}  Rcd8 {[%clk 0:02:26]} 16. Rae1 {[%clk 0:02:38]}  Qd7 {[%clk 0:02:20]} 17. f4 {[%clk 0:02:29]}  Bh3 {[%clk 0:01:58]} 18. Bxh3 {[%clk 0:02:25]}  Qxh3 {[%clk 0:01:59]} 19. Bxg7 {[%clk 0:02:22]}  Kxg7 {[%clk 0:02:00]} 20. Qd4+ {[%clk 0:02:23]}  Kg8 {[%clk 0:02:00]} 21. f5 {[%clk 0:02:23]}  Qh6 {[%clk 0:01:54]} 22. Rf4 {[%clk 0:02:20]}  g5 {[%clk 0:01:49]} 23. Rg4 {[%clk 0:02:12]}  f6 {[%clk 0:01:47]} 24. h4 {[%clk 0:02:09]}  Qh5 {[%clk 0:01:34]} 25. Kg2 {[%clk 0:01:46]}  c5 {[%clk 0:00:54]} 26. Qd5+ {[%clk 0:01:38]}  Kg7 {[%clk 0:00:38]} 27. Re4 {[%clk 0:01:26]}  Rfe8 {[%clk 0:00:30]} 28. hxg5 {[%clk 0:01:20]}  fxg5 {[%clk 0:00:17]} 29. f6+ {[%clk 0:00:35]}  Kxf6 {[%clk 0:00:15]} 30. Rh4 {[%clk 0:00:21]}  Qg6 {[%clk 0:00:13]} 31. Rxh7 {[%clk 0:00:20]}  Qc2+ {[%clk 0:00:11]} 32. Kg1 {[%clk 0:00:20]}  Qxh7 {[%clk 0:00:10]} 33. Rf1+ {[%clk 0:00:20]}  Kg6 {[%clk 0:00:11]} 34. Rf5 {[%clk 0:00:12]}  Qe7 {[%clk 0:00:10]} 35. e4 {[%clk 0:00:05]}  Rf8 {[%clk 0:00:10]} 36. g4 {[%clk 0:00:03]}  Rxf5 {[%clk 0:00:10]} 37. gxf5+ {[%clk 0:00:04]}  Kf6 {[%clk 0:00:09]} 38. Kg2 {[%clk 0:00:05]}  Rh8 {[%clk 0:00:07]} 39. Qc6 {[%clk 0:00:04]}  Qe5 {[%clk 0:00:07]} 40. Qd7 {[%clk 0:00:05]}  Rh2+ {[%clk 0:00:07]} 41. Kg1 {[%clk 0:00:05]}  Qg3+ {[%clk 0:00:07]} 42. Kf1 {[%clk 0:00:05]}  Qf2# {[%clk 0:00:08]} 0-1


[Site "https://www.chess.com"]

[Event "Titled Tuesday Blitz January 03 Late 2023"]
[White "Bortnyk, Mykola"]
[Black "Morefield, Jason"]
[WhiteFideId "14120836"]
[BlackFideId "30920825"]
[WhiteElo "2425"]
[BlackElo "2167"]
[Result "0-1"]
[Round "05"]
[TimeControl "180+2"]
[Date "2023.01.03"]
[WhiteClock "0:00:20"]
[BlackClock "0:00:09"]

1. e4 {[%clk 0:02:59]}  e5 {[%clk 0:02:59]} 2. f4 {[%clk 0:02:57]}  exf4 {[%clk 0:02:53]} 3. Bc4 {[%clk 0:02:55]}  Qh4+ {[%clk 0:02:51]} 4. Kf1 {[%clk 0:02:54]}  d6 {[%clk 0:02:52]} 5. Nf3 {[%clk 0:02:52]}  Qh6 {[%clk 0:02:51]} 6. Nc3 {[%clk 0:02:50]}  Be6 {[%clk 0:02:51]} 7. Be2 {[%clk 0:02:43]}  Nf6 {[%clk 0:02:46]} 8. d4 {[%clk 0:02:42]}  Nh5 {[%clk 0:02:46]} 9. Rg1 {[%clk 0:02:34]}  g5 {[%clk 0:02:38]} 10. Nxg5 {[%clk 0:02:22]}  Qxg5 {[%clk 0:02:32]} 11. Bxh5 {[%clk 0:02:22]}  Qh4 {[%clk 0:01:49]} 12. Qf3 {[%clk 0:02:13]}  Bg7 {[%clk 0:01:44]} 13. d5 {[%clk 0:02:09]}  Bd7 {[%clk 0:01:40]} 14. Bxf4 {[%clk 0:02:07]}  O-O {[%clk 0:01:39]} 15. Ne2 {[%clk 0:01:53]}  f5 {[%clk 0:01:25]} 16. exf5 {[%clk 0:01:43]}  Bxf5 {[%clk 0:01:23]} 17. g4 {[%clk 0:01:39]}  Bg6 {[%clk 0:01:01]} 18. Qg3 {[%clk 0:01:24]}  Qxg3 {[%clk 0:00:53]} 19. hxg3 {[%clk 0:01:22]}  Nd7 {[%clk 0:00:46]} 20. c3 {[%clk 0:01:19]}  Nb6 {[%clk 0:00:46]} 21. Kg2 {[%clk 0:01:17]}  Nxd5 {[%clk 0:00:44]} 22. Bxg6 {[%clk 0:01:15]}  hxg6 {[%clk 0:00:43]} 23. Rad1 {[%clk 0:01:13]}  Nb6 {[%clk 0:00:37]} 24. Rge1 {[%clk 0:01:06]}  Rae8 {[%clk 0:00:35]} 25. b3 {[%clk 0:01:05]}  Re6 {[%clk 0:00:31]} 26. Nd4 {[%clk 0:01:01]}  Rxe1 {[%clk 0:00:31]} 27. Rxe1 {[%clk 0:01:02]}  Bxd4 {[%clk 0:00:31]} 28. cxd4 {[%clk 0:01:03]}  Nd5 {[%clk 0:00:31]} 29. Bd2 {[%clk 0:01:01]}  Kf7 {[%clk 0:00:28]} 30. Rf1+ {[%clk 0:01:00]}  Ke8 {[%clk 0:00:28]} 31. Rh1 {[%clk 0:00:57]}  Rf6 {[%clk 0:00:25]} 32. Rh7 {[%clk 0:00:54]}  Rf7 {[%clk 0:00:23]} 33. Rh6 {[%clk 0:00:53]}  Rg7 {[%clk 0:00:23]} 34. Kf3 {[%clk 0:00:51]}  Kd7 {[%clk 0:00:22]} 35. g5 {[%clk 0:00:48]}  Ke6 {[%clk 0:00:22]} 36. Ke4 {[%clk 0:00:47]}  Ne7 {[%clk 0:00:21]} 37. g4 {[%clk 0:00:47]}  c5 {[%clk 0:00:19]} 38. dxc5 {[%clk 0:00:46]}  dxc5 {[%clk 0:00:20]} 39. Bc3 {[%clk 0:00:47]}  Rg8 {[%clk 0:00:18]} 40. Bf6 {[%clk 0:00:47]}  Nd5 {[%clk 0:00:18]} 41. Be5 {[%clk 0:00:45]}  Ne7 {[%clk 0:00:16]} 42. Rh7 {[%clk 0:00:40]}  Rf8 {[%clk 0:00:16]} 43. Bf6 {[%clk 0:00:40]}  Rf7 {[%clk 0:00:16]} 44. Rxf7 {[%clk 0:00:36]}  Kxf7 {[%clk 0:00:17]} 45. Bxe7 {[%clk 0:00:37]}  Kxe7 {[%clk 0:00:17]} 46. Kd5 {[%clk 0:00:37]}  b6 {[%clk 0:00:18]} 47. Kc6 {[%clk 0:00:38]}  Ke6 {[%clk 0:00:14]} 48. a4 {[%clk 0:00:37]}  Ke5 {[%clk 0:00:13]} 49. Kb7 {[%clk 0:00:38]}  Kd6 {[%clk 0:00:12]} 50. Kxa7 {[%clk 0:00:36]}  Kc7 {[%clk 0:00:12]} 51. Ka6 {[%clk 0:00:33]}  Kc6 {[%clk 0:00:12]} 52. a5 {[%clk 0:00:33]}  b5 {[%clk 0:00:10]} 53. Ka7 {[%clk 0:00:33]}  Kc7 {[%clk 0:00:08]} 54. a6 {[%clk 0:00:28]}  c4 {[%clk 0:00:09]} 55. b4 {[%clk 0:00:23]}  c3 {[%clk 0:00:09]} 56. Ka8 {[%clk 0:00:24]}  c2 {[%clk 0:00:10]} 57. a7 {[%clk 0:00:25]}  Kb6 {[%clk 0:00:09]} 58. Kb8 {[%clk 0:00:23]}  c1=Q {[%clk 0:00:10]} 59. a8=Q {[%clk 0:00:20]}  Qc7# {[%clk 0:00:09]} 0-1


[Site "https://www.chess.com"]